bitfinex/quotes_ETHUSD_20251011
["timestamp","ask_amount","ask_price","bid_price","bid_amount"]
[1760165113482,0.001,3798.0,3797.9,3.26663404]
[1760165113793,0.001,3798.0,3797.9,5.18663404]
[1760165113993,0.001,3800.1,3799.1,0.6336]
[1760165114202,1.921,3800.1,3799.6,0.1312]
[1760165114380,1.921,3800.1,3799.7,14.504]
[1760165114576,0.001,3800.1,3799.8,0.004]
[1760165114793,0.001,3800.1,3799.9,0.004]
[1760165115482,0.001,3800.1,3799.8,0.6336]
[1760165115686,0.001,3800.1,3799.9,0.004]
[1760165115901,0.001,3800.1,3800.0,0.004]
[1760165116102,0.001,3800.1,3799.8,0.6336]
[1760165116319,0.001,3800.1,3799.9,0.004]
[1760165116652,0.001,3800.1,3800.0,0.004]
[1760165118232,0.001,3800.1,3799.8,0.6336]
[1760165118412,0.001,3800.1,3799.9,14.5]
[1760165120227,0.001,3800.1,3800.0,0.004]
[1760165122410,0.001,3800.1,3799.9,14.5]
[1760165122610,0.001,3800.1,3800.0,0.004]
[1760165123012,0.001,3800.1,3800.0,0.6376]
[1760165123212,0.001,3800.1,3800.0,3.40037894]
[1760165123424,0.001,3800.5,3800.4,0.6336]
[1760165123630,0.001,3801.6,3800.5,0.6336]
[1760165123631,1.92,3801.5,3800.5,0.6336]
[1760165123831,0.001,3801.6,3800.5,0.6356]
[1760165124126,0.001,3801.6,3801.1,0.6336]
[1760165124715,0.001,3801.6,3801.1,15.1336]
[1760165125116,0.001,3801.6,3801.1,14.5]
[1760165125117,2.63174818,3801.2,3801.1,14.5]
[1760165125333,0.001,3801.2,3801.1,14.5]
[1760165126827,0.001,3801.2,3801.1,15.1336]
[1760165127619,0.001,3801.2,3801.1,17.76441739]
[1760165128653,0.001,3801.2,3801.1,19.68441739]
[1760165129447,0.001,3801.3,3801.2,5.18434818]
[1760165130217,0.10551319,3804.2,3803.5,0.6336]
[1760165130422,0.4582,3804.1,3802.5,0.6336]
[1760165130657,2.62881177,3804.0,3802.5,0.6336]
[1760165130818,2.62881177,3804.0,3802.9,0.6336]
[1760165131019,2.62890752,3803.9,3803.1,0.6336]
[1760165131222,5.0069603,3804.1,3803.1,0.6336]
[1760165131435,4.5487603,3804.1,3803.1,0.6336]
[1760165131640,1.92,3804.7,3803.2,0.6336]
[1760165131848,0.4582,3804.6,3803.2,0.6336]
[1760165132064,1.92,3804.7,3802.7,2.62965627]
[1760165132065,2.62888273,3803.9,3803.4,0.6336]
[1760165132263,1.92,3803.9,3803.4,0.6336]
[1760165132560,4.54877263,3804.1,3802.9,0.6336]
[1760165132735,1.92,3803.9,3803.0,0.6336]
[1760165133061,1.92,3803.9,3803.5,14.5]
[1760165133270,4.54883141,3804.0,3803.5,14.5]
[1760165133559,0.1312,3803.8,3803.5,14.5]
[1760165136533,14.62183731,3804.5,3803.5,14.5]
[1760165136534,15.26351469,3805.2,3803.6,0.6336]
[1760165136875,0.1312,3804.4,3803.8,0.6336]
[1760165137033,0.1312,3804.4,3803.9,0.1312]
[1760165137234,0.1312,3804.4,3804.0,0.6336]
[1760165137443,1.921,3805.1,3804.1,14.5]
[1760165137644,0.1312,3804.7,3804.2,0.6336]
[1760165137939,0.1312,3804.7,3804.2,0.7648]
[1760165138378,0.001,3805.1,3804.2,0.7648]
[1760165138379,0.1322,3805.1,3804.4,0.6336]
[1760165138587,2.62825721,3804.9,3804.4,0.7648]
[1760165139089,1.92,3805.0,3804.4,0.1312]
[1760165139384,0.4582,3804.8,3803.2,0.6336]
[1760165139586,2.62863888,3804.3,3803.2,0.6336]
[1760165139785,4.54860447,3804.3,3801.6,2.63042535]
[1760165139984,2.6288118,3804.0,3802.9,2.62956291]
[1760165140283,0.4591,3804.2,3803.3,14.5]
[1760165140284,4.54874025,3804.2,3803.3,14.5]
[1760165140485,1.92,3804.3,3803.4,0.6336]
[1760165140668,2.3791,3805.0,3803.7,0.6336]
[1760165140887,1.92,3804.6,3803.1,0.6336]
[1760165141092,1.92,3804.6,3803.6,0.6336]
[1760165141272,2.62840028,3804.6,3804.0,14.5]
[1760165141477,1.92,3804.3,3804.0,14.5]
[1760165142005,4.54862978,3804.3,3804.0,14.5]
[1760165142297,2.62867591,3804.2,3804.0,14.5]
[1760165142679,1.92,3804.3,3804.0,14.5]
[1760165142880,0.00468618,4189.0,3804.0,14.5]
[1760165142881,1.92,3805.0,3804.0,14.5]
[1760165143076,14.62283731,3805.1,3804.1,0.6336]
[1760165143280,1.92,3805.0,3804.1,0.6336]
[1760165143624,4.54812189,3805.0,3804.0,0.6336]
[1760165143770,14.62283731,3805.1,3804.2,14.5]
[1760165143771,1.92,3804.6,3804.2,14.5]
[1760165144198,0.001,3804.3,3804.2,14.5]
[1760165144517,2.62960447,3804.3,3804.2,14.5]
[1760165145399,5.00870447,3804.3,3804.2,14.5]
[1760165146116,5.00870447,3804.3,3801.8,2.63032827]
[1760165146117,2.62903097,3803.7,3802.5,2.62979172]
[1760165146318,2.62903097,3803.7,3802.7,3.26328735]
[1760165146500,2.62903097,3803.7,3802.1,1.92]
[1760165146501,2.62896703,3803.8,3803.3,14.5]
[1760165146674,2.62887654,3804.0,3803.3,14.5]
[1760165147511,1.921,3804.3,3803.4,0.6336]
[1760165147814,2.62868894,3804.2,3803.0,0.6336]
[1760165148013,2.62868894,3804.2,3802.2,2.63001133]
[1760165148014,2.62867357,3804.2,3803.2,0.6336]
[1760165148176,2.62867357,3804.2,3803.7,14.5]
[1760165148177,2.62884898,3804.0,3803.7,14.5]
[1760165148521,2.62891193,3803.9,3803.7,14.5]
[1760165148699,4.54894999,3803.8,3803.7,14.5]
[1760165148903,5.22394999,3803.8,3803.7,14.5]
[1760165149715,5.22394999,3803.8,3803.0,0.1312]
[1760165149716,2.62943388,3803.1,3803.0,0.1312]
[1760165149918,1.92,3803.3,3802.8,0.1312]
[1760165150090,1.92,3803.3,3798.2,3.31694062]
[1760165150091,1.92,3802.8,3800.3,0.79166639]
[1760165150290,2.62983677,3802.6,3801.8,14.5]
[1760165150500,2.63026381,3801.9,3801.8,14.5]
[1760165150815,5.22526381,3801.9,3801.8,14.5]
[1760165151910,1.92,3801.5,3799.3,0.79184818]
[1760165152080,1.92,3801.2,3800.0,2.63151053]
[1760165152409,2.63075354,3801.2,3800.4,14.5]
[1760165153022,2.63084892,3801.1,3800.4,14.5]
[1760165153194,2.63084892,3801.1,3800.5,0.6336]
[1760165153396,2.63074629,3801.3,3800.5,0.6336]
[1760165153597,2.6308207,3801.1,3800.2,0.6336]
[1760165153918,2.6308207,3801.1,3800.6,14.5]
[1760165154126,2.63100746,3800.9,3800.6,14.5]
[1760165154486,2.63105493,3800.8,3800.6,14.5]
[1760165154995,1.92,3801.2,3800.6,14.5]
[1760165155192,2.63081739,3801.1,3800.6,14.5]
[1760165155394,4.55076397,3801.2,3800.6,14.5]
[1760165155584,1.92,3801.3,3800.6,14.5]
[1760165155784,1.92,3802.1,3800.3,0.6336]
[1760165156021,1.92,3802.1,3799.6,2.63178745]
[1760165156022,1.92,3801.3,3800.1,0.6336]
[1760165156217,1.92,3801.4,3800.1,0.6336]
[1760165156416,14.62183731,3802.2,3800.7,0.6336]
[1760165156417,1.92,3801.5,3800.7,0.6336]
[1760165156725,1.92,3801.9,3800.6,0.6336]
[1760165156919,1.92,3801.9,3799.9,2.63163281]
[1760165156920,1.92,3802.1,3801.0,0.6336]
[1760165157097,1.92,3802.1,3800.5,0.6336]
[1760165157414,2.63034994,3801.8,3800.9,0.6336]
[1760165157606,2.63034994,3801.8,3800.5,2.6312112]
[1760165157607,1.92,3801.5,3800.6,0.6336]
[1760165158495,1.92,3801.5,3800.7,0.6336]
[1760165158691,1.92,3801.7,3800.7,0.6336]
[1760165158692,2.63041292,3801.7,3800.7,3.26468267]
[1760165159304,0.7918022,3803.2,3799.5,2.63188438]
[1760165159510,2.62907673,3803.7,3799.6,1.92]
[1760165159511,1.92,3802.2,3799.6,1.92]
[1760165159734,1.92,3802.2,3801.3,0.6336]
[1760165160085,0.1312,3802.6,3801.9,0.1312]
[1760165160315,2.62976785,3802.7,3802.3,0.1312]
[1760165160550,14.62183731,3802.9,3802.3,0.1312]
[1760165160688,1.92,3802.7,3802.6,0.1312]
[1760165160910,1.92,3802.7,3801.8,0.6336]
[1760165161231,14.62183731,3802.9,3801.8,0.1312]
[1760165161232,2.62998711,3802.3,3801.8,0.1312]
[1760165161408,0.1312,3802.4,3801.8,0.1312]
[1760165161409,14.62183731,3802.1,3801.8,0.1312]
[1760165161610,2.63045838,3801.7,3801.1,0.6336]
[1760165161814,2.63045838,3801.7,3801.5,0.1312]
[1760165162013,2.63032514,3801.9,3801.5,0.1312]
[1760165162314,4.55021981,3802.0,3801.5,0.1312]
[1760165162915,2.63047138,3801.6,3800.0,2.63155957]
[1760165163126,0.8145,3801.9,3801.3,0.1312]
[1760165163330,2.6305316,3801.6,3801.3,0.1312]
[1760165163514,2.6305584,3801.5,3801.3,0.1312]
[1760165163724,2.63060231,3801.5,3801.3,0.1312]
[1760165164255,0.1312,3801.9,3801.3,0.1312]
[1760165164552,2.76147133,3801.9,3801.3,0.1312]
[1760165164704,2.63045543,3801.7,3801.3,0.1312]
[1760165164906,1.92,3802.0,3800.6,0.6336]
[1760165165145,4.55019693,3802.0,3801.5,0.1312]
[1760165165331,2.63036221,3801.8,3801.5,0.1312]
[1760165165642,4.55019693,3802.0,3801.5,0.1312]
[1760165165643,2.63045757,3801.7,3801.5,0.1312]
[1760165165937,2.63063692,3801.4,3801.3,0.1312]
[1760165166340,3.09035354,3801.7,3801.3,0.1312]
[1760165166543,2.63060977,3801.4,3801.3,0.1312]
[1760165166922,0.1312,3801.9,3801.3,0.1312]
[1760165167216,0.2234,3801.8,3801.3,0.1312]
[1760165167538,2.63047138,3801.6,3801.3,0.1312]
[1760165167717,1.92,3801.7,3801.3,0.1312]
[1760165168050,4.55000132,3802.3,3801.0,2.63088433]
[1760165168216,4.55000132,3802.3,3801.6,0.1312]
[1760165168217,0.1312,3802.3,3801.6,0.1312]
[1760165168419,0.1312,3802.3,3801.9,0.1312]
[1760165168420,2.63012958,3802.1,3801.9,0.1312]
[1760165168809,2.0512,3802.3,3801.9,0.1312]
[1760165168810,0.1312,3802.3,3801.9,0.1312]
[1760165169010,1.92,3802.1,3801.9,0.1312]
[1760165169211,0.4599,3802.0,3797.8,2.6331024]
[1760165169412,2.63112956,3800.7,3799.4,2.6319446]
[1760165169652,2.63112956,3800.7,3798.2,2.63282196]
[1760165169653,14.62183731,3801.3,3798.6,0.6336]
[1760165169853,14.62183731,3801.3,3799.5,2.63189999]
[1760165169854,1.92,3801.2,3799.5,2.63189999]
[1760165170013,2.63087907,3801.1,3799.3,1.92]
[1760165170206,1.92,3801.2,3799.3,1.92]
[1760165170451,14.62183731,3801.3,3798.5,2.63261813]
[1760165170452,14.62183731,3802.0,3799.4,0.6336]
[1760165170610,2.63059988,3801.5,3800.4,0.6336]
[1760165170811,0.4599,3801.7,3799.0,0.6336]
[1760165171018,2.63095153,3801.0,3799.8,2.63169266]
[1760165171219,2.63095153,3801.0,3799.9,0.6336]
[1760165171420,0.4599,3801.3,3798.4,0.002]
[1760165171620,2.6314285,3800.3,3798.9,2.63227624]
[1760165171830,2.6314285,3800.3,3798.4,0.002]
[1760165171831,0.4599,3800.4,3798.4,0.002]
[1760165172056,2.6313712,3800.3,3798.5,2.63258157]
[1760165172353,0.4599,3800.2,3798.4,0.002]
[1760165172532,2.63185342,3799.7,3798.4,0.002]
[1760165172729,2.63178672,3799.7,3798.4,0.002]
[1760165173039,0.6833,3799.6,3798.4,0.002]
[1760165173238,1.92,3799.4,3798.4,0.002]
[1760165173445,0.41278634,3800.8,3798.6,2.63248558]
[1760165173650,1.92,3800.5,3799.2,0.6336]
[1760165173831,2.3799,3800.5,3799.2,0.6336]
[1760165174031,1.92,3799.8,3798.4,0.002]
[1760165174245,2.63185685,3799.6,3798.4,0.002]
[1760165174462,2.3799,3799.8,3798.4,0.6356]
[1760165174765,0.4599,3799.8,3798.4,2.63467829]
[1760165174964,3.64639086,3801.3,3798.8,0.6336]
[1760165174965,2.3799,3800.2,3798.8,0.6336]
[1760165175252,2.3799,3800.6,3798.4,0.002]
[1760165175454,1.92,3800.2,3798.9,0.6336]
[1760165175656,4.55145534,3800.2,3798.9,3.26592633]
[1760165175852,1.92,3800.2,3799.1,0.6336]
[1760165176063,0.4599,3800.2,3799.1,0.6336]
[1760165176265,0.4599,3800.2,3798.7,0.6336]
[1760165176467,2.63157251,3800.1,3799.0,0.6336]
[1760165177363,1.92,3800.1,3799.1,0.6336]
[1760165177568,2.63151834,3800.1,3799.1,0.6336]
[1760165177761,14.62183731,3799.8,3798.4,0.002]
[1760165178063,14.62183731,3799.8,3799.1,0.002]
[1760165178274,0.4599,3800.0,3799.1,0.002]
[1760165178275,2.63171344,3799.9,3799.1,0.002]
[1760165178435,0.4599,3800.0,3799.1,0.002]
[1760165178436,2.3799,3800.0,3799.1,0.002]
[1760165178639,2.63172787,3799.8,3799.1,0.002]
[1760165179037,2.63179748,3799.7,3799.1,0.002]
[1760165179231,2.63179748,3799.7,3799.3,0.1312]
[1760165179466,3.09169748,3799.7,3799.3,0.1312]
[1760165180369,0.4599,3799.7,3799.3,0.1312]
[1760165181485,14.62183731,3800.5,3799.6,0.1312]
[1760165181486,1.92,3800.2,3799.6,0.1312]
[1760165181659,15.08173731,3801.2,3799.1,0.002]
[1760165181859,1.92,3800.5,3799.5,0.6336]
[1760165182296,1.92,3800.6,3799.5,3.26551896]
[1760165182788,2.63116833,3800.6,3799.5,3.26551896]
[1760165182987,15.08173731,3801.2,3799.1,0.002]
[1760165183190,0.4599,3801.2,3799.1,0.002]
[1760165183358,0.4599,3801.2,3799.8,0.6336]
[1760165183359,3.09067719,3801.2,3799.8,0.6336]
[1760165183553,2.63094926,3801.0,3799.8,3.26530556]
[1760165183755,0.001,3802.0,3799.1,0.002]
[1760165183756,0.001,3802.0,3800.0,3.26511105]
[1760165183981,0.001,3802.0,3799.1,0.002]
[1760165183982,0.001,3802.0,3801.0,0.6336]
[1760165184301,0.001,3802.0,3801.2,0.6336]
[1760165184584,0.001,3802.0,3801.1,0.6336]
[1760165184955,0.001,3802.0,3800.3,1.92]
[1760165184956,0.001,3802.0,3801.4,0.6336]
[1760165185156,0.001,3802.0,3801.4,3.26420888]
[1760165185390,0.001,3802.0,3801.9,2.63026381]
[1760165185597,0.001,3802.8,3802.7,4.54971046]
[1760165185758,0.001,3802.8,3802.7,5.18331046]
[1760165185957,0.001,3802.8,3802.7,19.68331046]
[1760165187697,0.001,3802.8,3802.7,17.0536]
[1760165187870,0.001,3802.8,3802.7,19.68331046]
[1760165188590,0.001,3802.8,3802.7,17.0536]
[1760165189171,0.001,3802.8,3802.7,14.5]
[1760165191192,0.001,3802.8,3802.7,17.76331046]
[1760165191700,0.001,3802.8,3802.7,17.89451046]
[1760165192799,0.001,3802.8,3802.7,19.81451046]
[1760165194793,0.001,3802.8,3802.7,17.1848]
[1760165195024,0.001,3802.8,3802.7,14.6312]
[1760165195214,0.001,3802.8,3802.7,15.2648]
[1760165195532,0.001,3802.8,3802.7,14.6312]
[1760165195746,0.001,3802.8,3802.7,15.2648]
[1760165196026,0.001,3802.8,3802.7,17.89451046]
[1760165197293,0.001,3802.8,3802.7,15.2648]
[1760165198123,0.001,3802.8,3802.7,17.89451046]
[1760165199605,0.001,3802.8,3802.7,15.2648]
[1760165199933,0.001,3802.8,3802.7,17.89451046]
[1760165201233,0.001,3802.8,3802.7,17.76331046]
[1760165201536,0.001,3802.8,3802.7,17.89451046]
[1760165201718,0.001,3802.8,3802.7,19.81451046]
[1760165202198,0.001,3802.8,3802.7,17.1848]
[1760165202620,0.001,3802.8,3802.7,19.81451046]
[1760165202828,0.001,3802.8,3802.7,17.1848]
[1760165203203,0.001,3802.8,3802.7,14.5]
[1760165203633,3.09714131,3802.8,3802.7,14.5]
[1760165204233,5.01714131,3802.8,3802.7,14.5]
[1760165204538,2.63021476,3802.0,3799.4,3.26558925]
[1760165204711,5.01714131,3802.8,3799.3,1.88314444]
[1760165204712,2.63045907,3801.7,3800.3,0.79171653]
[1760165204913,4.55041787,3801.7,3799.5,2.63188129]
[1760165205235,2.63075299,3801.2,3799.6,2.5536]
[1760165205404,13.93043121,3801.8,3799.4,0.79171653]
[1760165205405,1.92,3801.7,3799.4,0.79171653]
[1760165205723,2.63060305,3801.5,3800.8,14.5]
[1760165206225,1.92,3801.3,3800.8,14.5]
[1760165206430,13.93043121,3801.8,3800.8,14.5]
[1760165206603,1.92,3801.4,3800.8,14.5]
[1760165206804,4.55061547,3801.4,3800.8,14.5]
[1760165207004,2.63072421,3801.3,3800.8,14.5]
[1760165207422,1.92,3801.5,3800.8,14.5]
[1760165207629,1.92,3801.7,3800.8,14.5]
[1760165208537,1.92,3801.7,3800.2,3.2650321]
[1760165208734,1.92,3801.7,3800.0,3.26517894]
[1760165208935,0.2243,3802.5,3799.7,1.92]
[1760165209103,2.62999771,3802.3,3801.3,14.5]
[1760165209306,2.63012545,3802.1,3801.3,14.5]
[1760165209505,14.39693121,3802.7,3799.1,4.5153123]
[1760165209506,13.93043121,3802.7,3799.8,0.6336]
[1760165209715,16.56014875,3802.7,3800.2,0.6336]
[1760165209932,16.56014875,3802.7,3801.9,14.5]
[1760165210141,2.62998475,3802.4,3801.9,14.5]
[1760165210304,2.63012386,3802.2,3801.9,14.5]
[1760165210513,2.63019463,3802.0,3801.9,14.5]
[1760165210729,3.09669463,3802.0,3801.9,14.5]
[1760165210922,4.55019463,3802.0,3801.9,14.5]
[1760165211915,0.001,3802.8,3801.9,14.5]
[1760165212237,2.63019463,3802.0,3801.9,14.5]
[1760165213029,3.09669463,3802.0,3801.9,14.5]
[1760165213633,2.63074818,3801.2,3799.3,0.002]
[1760165213829,2.63081739,3801.1,3800.8,0.1312]
[1760165214130,2.63081739,3801.1,3801.0,14.5]
[1760165214442,13.93043121,3801.3,3801.0,14.5]
[1760165214742,1.92,3801.6,3801.0,14.5]
[1760165214935,0.1312,3801.7,3801.1,0.1312]
[1760165215241,1.92,3801.4,3801.1,0.1312]
[1760165215450,2.63062062,3801.4,3801.1,0.1312]
[1760165215749,2.63074818,3801.2,3801.1,0.1312]
[1760165216324,1.92,3801.6,3801.1,0.1312]
[1760165216653,2.63040374,3801.7,3801.1,0.1312]
[1760165216856,2.63040374,3801.7,3800.3,0.6336]
[1760165217055,1.92,3801.9,3801.4,0.1312]
[1760165217950,4.55026975,3801.9,3801.4,0.1312]
[1760165218322,1.92,3801.9,3801.4,0.1312]
[1760165218525,1.92,3801.9,3801.6,0.1312]
[1760165218830,4.55026543,3801.9,3801.6,0.1312]
[1760165219032,2.63040218,3801.7,3801.6,0.1312]
[1760165219430,1.92,3801.9,3801.6,0.1312]
[1760165219746,4.550333,3801.8,3801.7,14.5]
[1760165221351,4.986933,3801.8,3801.7,14.5]
[1760165223025,4.986933,3801.8,3799.2,3.42401814]
[1760165223026,2.63107863,3800.8,3798.9,0.002]
[1760165223252,2.63107863,3800.8,3799.3,1.922]
[1760165223451,2.6304929,3801.6,3800.7,14.5]
[1760165223452,2.63096663,3800.9,3800.7,14.5]
[1760165223641,0.4366,3801.4,3800.7,14.5]
[1760165223642,2.63102504,3800.8,3800.7,14.5]
[1760165224025,0.4366,3801.4,3800.7,14.5]
[1760165224026,2.63082833,3801.1,3800.7,14.5]
[1760165224228,2.63094122,3801.0,3800.7,14.5]
[1760165224426,1.92,3801.4,3800.7,14.5]
[1760165224649,2.63102504,3800.8,3800.7,14.5]
[1760165225056,4.55102504,3800.8,3800.7,14.5]
[1760165225254,4.98762504,3800.8,3800.7,14.5]
[1760165225736,4.98762504,3800.8,3799.3,0.002]
[1760165225737,2.63178391,3799.8,3799.3,0.002]
[1760165225954,5.26218854,3800.7,3799.3,0.002]
[1760165225955,13.93043121,3800.1,3799.3,0.002]
[1760165226161,2.63184704,3799.7,3799.3,0.002]
[1760165226358,2.63158297,3800.0,3799.6,14.5]
[1760165226558,13.93043121,3800.1,3799.6,14.5]
[1760165226867,2.63172056,3799.8,3799.3,0.002]
[1760165227234,13.93043121,3800.1,3799.7,14.5]
[1760165227665,2.63168076,3799.9,3799.7,14.5]
[1760165228166,2.63171745,3799.8,3799.7,14.5]
[1760165228543,13.93043121,3800.1,3799.7,14.5]
[1760165228950,2.63171745,3799.8,3799.7,14.5]
[1760165229966,0.4366,3801.0,3799.7,14.5]
[1760165230348,1.92,3800.4,3799.3,0.002]
[1760165230767,1.92,3800.4,3800.3,14.5]
[1760165230968,16.56173317,3800.4,3800.3,14.5]
[1760165231161,18.48173317,3800.4,3800.3,14.5]
[1760165232251,18.91833317,3800.4,3800.3,14.5]
[1760165233161,18.91833317,3800.4,3799.6,0.002]
[1760165233162,2.63178672,3799.7,3799.6,0.002]
[1760165233483,4.55178672,3799.7,3799.6,0.002]
[1760165233645,4.98838672,3799.7,3799.6,0.002]
[1760165234150,2.0512,3799.7,3799.6,0.002]
[1760165234475,4.55178672,3799.7,3799.6,0.002]
[1760165234960,4.98838672,3799.7,3799.6,0.002]
[1760165236555,4.55178672,3799.7,3799.6,0.002]
[1760165236992,4.68298672,3799.7,3799.6,0.002]
[1760165237397,5.11958672,3799.7,3799.6,0.002]
[1760165237903,2.63178672,3799.7,3799.6,0.002]
[1760165238205,3.06838672,3799.7,3799.6,0.002]
[1760165243480,4.98838672,3799.7,3799.6,0.002]
[1760165243783,4.55178672,3799.7,3799.6,0.002]
[1760165244292,4.98838672,3799.7,3799.6,0.002]
[1760165244498,4.55178672,3799.7,3799.6,0.002]
[1760165244707,13.93043121,3800.8,3799.6,0.002]
[1760165245007,1.92,3800.0,3799.6,0.002]
[1760165245208,1.92,3799.8,3799.6,14.502]
[1760165245777,2.63178672,3799.7,3799.6,14.502]
[1760165245976,1.92,3799.7,3799.6,14.502]
[1760165246621,0.4366,3800.6,3799.6,14.502]
[1760165246776,2.3566,3800.6,3799.6,14.502]
[1760165247114,2.63159217,3800.0,3799.6,14.502]
[1760165247409,2.63178672,3799.7,3799.6,14.502]
[1760165247906,0.1312,3799.8,3799.6,14.502]
[1760165248106,2.63178672,3799.7,3799.6,14.502]
[1760165248807,3.06838672,3799.7,3799.6,14.502]
[1760165249324,4.98838672,3799.7,3799.6,14.502]
[1760165249486,4.98838672,3799.7,3799.6,0.002]
[1760165259552,19.14719961,3799.7,3799.6,0.002]
[1760165262256,3.26573308,3799.2,3799.1,0.002]
[1760165262442,5.18573308,3799.2,3799.1,0.002]
[1760165262644,5.18587165,3799.0,3798.9,1e-08]
[1760165262955,5.18587165,3799.0,3797.7,14.5]
[1760165262956,4.55241023,3798.8,3797.7,14.5]
[1760165263323,5.01931023,3798.8,3797.7,14.5]
[1760165265126,4.55241023,3798.8,3797.7,14.5]
[1760165265456,5.01931023,3798.8,3797.7,14.5]
[1760165266664,5.01931023,3798.8,3796.9,0.6336]
[1760165266665,2.63241023,3798.8,3796.9,0.6336]
[1760165266864,14.15881289,3799.0,3797.4,0.6336]
[1760165267069,14.15881289,3799.7,3797.9,0.6336]
[1760165267253,14.15881289,3799.7,3798.9,14.5]
[1760165267455,2.6320456,3799.4,3798.9,14.5]
[1760165267644,16.79060508,3799.7,3798.9,14.5]
[1760165267845,2.632051,3799.4,3798.9,14.5]
[1760165268165,14.15881289,3799.7,3798.9,14.5]
[1760165268366,0.4669,3799.3,3798.9,14.5]
[1760165268657,2.63227165,3799.0,3798.9,14.5]
[1760165269039,19.17798454,3799.0,3798.9,14.5]
[1760165269845,2.63241023,3798.8,3797.6,0.002]
[1760165270140,4.55241023,3798.8,3797.6,0.002]
[1760165270373,5.01931023,3798.8,3797.6,0.002]
[1760165273381,4.55241023,3798.8,3797.6,0.002]
[1760165273549,5.01931023,3798.8,3797.7,0.1312]
[1760165276181,4.55241023,3798.8,3797.6,0.002]
[1760165276386,4.55241023,3798.8,3797.7,0.1312]
[1760165277403,5.01931023,3798.8,3797.7,0.1312]
[1760165280172,5.01931023,3798.8,3797.6,0.002]
[1760165284762,4.55241023,3798.8,3797.6,0.002]
[1760165284966,5.02601023,3798.8,3797.6,0.002]
[1760165285364,5.02601023,3798.8,3798.6,0.002]
[1760165286972,4.55241023,3798.8,3798.6,0.002]
[1760165289708,5.02601023,3798.8,3798.6,0.002]
[1760165289908,4.55247953,3798.7,3798.6,0.002]
[1760165290115,4.68367953,3798.7,3798.6,0.002]
[1760165290285,5.15727953,3798.7,3798.6,0.002]
[1760165294419,5.02607953,3798.7,3798.6,0.002]
[1760165296325,4.68374883,3798.6,3798.0,0.002]
[1760165296841,5.15734883,3798.6,3798.0,0.002]
[1760165297052,2.63289539,3798.1,3798.0,0.002]
[1760165297222,18.71170828,3798.1,3798.0,0.002]
[1760165297431,19.18530828,3798.1,3798.0,0.002]
[1760165297932,19.55758686,3798.1,3798.0,0.002]
[1760165298251,19.57648226,3798.1,3798.0,0.002]
[1760165298771,19.18530828,3798.1,3798.0,0.002]
[1760165300441,18.71170828,3798.1,3798.0,0.002]
[1760165301054,16.79170828,3798.1,3798.0,0.002]
[1760165301449,14.15881289,3798.8,3798.0,0.002]
[1760165301838,2.63287722,3798.2,3798.0,0.002]
[1760165302134,2.63289539,3798.1,3798.0,0.002]
[1760165302335,17.26530828,3798.1,3798.0,0.002]
[1760165306538,19.18530828,3798.1,3798.0,0.002]
[1760165307362,3.2667727,3797.7,3797.6,0.002]
[1760165307669,5.95022526,3797.7,3797.6,0.002]
[1760165307885,6.42382526,3797.7,3797.6,0.002]
[1760165308243,6.05154668,3797.7,3797.6,0.002]
[1760165308564,3.26711943,3797.2,3796.7,0.002]
[1760165308871,19.34593232,3797.2,3796.7,0.002]
[1760165309077,19.79753232,3797.2,3796.7,0.002]
[1760165313293,3.26739688,3796.8,3796.7,1e-08]
[1760165313496,5.18739688,3796.8,3796.7,1e-08]
[1760165313790,5.63899688,3796.8,3796.7,1e-08]
[1760165314896,5.00539688,3796.8,3796.7,1e-08]
[1760165318903,5.00539688,3796.8,3796.3,0.002]
[1760165319078,2.63435194,3796.0,3794.0,0.003]
[1760165319277,4.55511554,3794.9,3794.6,14.5]
[1760165323273,5.01711554,3794.9,3794.6,14.5]
[1760165325292,5.01711554,3794.9,3794.0,0.003]
[1760165326008,5.01711554,3794.9,3794.0,1e-08]
[1760165326009,5.18927117,3794.1,3794.0,1e-08]
[1760165326318,5.18927117,3794.1,3790.8,0.02]
[1760165326319,0.6336,3793.4,3790.8,0.02]
[1760165326488,2.6371308,3792.0,3791.9,14.5]
[1760165327120,5.0191308,3792.0,3791.9,14.5]
[1760165328691,4.5571308,3792.0,3791.9,14.5]
[1760165329013,5.0191308,3792.0,3791.9,14.5]
[1760165329711,4.5571308,3792.0,3791.9,14.5]
[1760165330724,5.0191308,3792.0,3791.9,14.5]
[1760165331700,1.92,3791.9,3790.0,0.02]
[1760165331902,2.63816697,3790.6,3789.4,0.02]
[1760165332215,2.63804049,3790.7,3790.5,14.5]
[1760165332392,2.63787906,3791.0,3790.5,14.5]
[1760165332587,0.462,3790.9,3789.4,0.02]
[1760165332792,2.63850465,3790.1,3789.0,0.02]
[1760165332989,2.63754813,3791.4,3790.0,14.5]
[1760165333189,1.92,3791.1,3790.0,14.5]
[1760165333494,1.92,3791.1,3787.2,2.64040627]
[1760165333495,0.462,3791.0,3789.5,0.02]
[1760165333695,2.382,3791.0,3789.5,0.02]
[1760165333900,2.638177,3790.5,3789.5,0.02]
[1760165334307,2.63802607,3790.8,3789.5,0.02]
[1760165334308,1.92,3790.7,3789.5,0.02]
[1760165334617,2.63664966,3792.7,3790.4,14.5]
[1760165334831,0.462,3791.8,3790.1,0.02]